[Event "GER-chT States Women 2022"]
[Site "Braunfels"]
[Date "2022.06.18"]
[Round "4.31"]
[White "Leib, Britta"]
[Black "Schilay, Maria"]
[Result "1-0"]
[ECO "C55"]
[WhiteElo "1906"]
[BlackElo "1568"]
[Annotator "NA RC"]
[PlyCount "67"]
[EventDate "2022.06.15"]
[EventType "swiss"]
[EventCountry "GER"]
[SourceTitle "playchess.com"]
[Source "ChessBase"]
[SourceQuality "1"]
[TimeControl "40/5400+30:1800+30"]

1. e4 {[%emt 0:00:02]} e5 {[%emt 0:00:09]} 2. Nf3 {[%emt 0:00:06]} Nc6 {[%emt 0:00:11]} 3. Bc4 {[%emt 0:00:38]} Nf6 {[%emt 0:00:28]} 4. d3 {[%emt 0:00:23]} Be7 {[%emt 0:01:04]} 5. c3 {[%emt 0:01:39]} O-O {[%emt 0:02:01]} 6. Bb3 {[%emt 0:02:16]} d5 {[%emt 0:03:31]} 7. exd5 {[%emt 0:06:25]} Nxd5 {[%emt 0:00:23]} 8. O-O {[%emt 0:01:08]} Bf6 {[%emt 0:21:08]} 9. Re1 {[%emt 0:21:37]} Nde7 {[%emt 0:09:05]} 10. Bc2 {[%emt 0:04:21]} Bf5 {[%emt 0:04:23]} 11. Qe2 {[%emt 0:01:14]} Ng6 {[%emt 0:03:10]} 12. g3 {[%emt 0:02:56]} Bh3 {[%emt 0:05:25]} 13. Nbd2 {[%emt 0:03:30]} h6 {[%emt 0:03:52]} 14. Ne4 {[%emt 0:02:57]} Be7 {[%emt 0:01:35]} 15. Be3 {[%emt 0:12:47]} f5 {[%emt 0:04:28]} 16. Bb3+ {[%emt 0:00:41]} Kh7 {[%emt 0:02:16]} 17. Neg5+ {[%emt 0:05:06]} hxg5 {[%emt 0:10:39]} 18. Nxg5+ {[%emt 0:01:19]} Bxg5 {[%emt 0:00:46]} 19. Qh5+ {[%emt 0:00:36]} Bh6 {[%emt 0:00:10]} 20. Qxh3 {[%emt 0:01:24]} f4 {[%emt 0:03:03]} 21. Bc5 {[%emt 0:02:06]} Rf6 {[%emt 0:01:33]} 22. Rad1 {[%emt 0:09:23]} b6 {[%emt 0:04:06]} 23. Ba3 {[%emt 0:00:30]} Na5 {[%emt 0:00:48]} (23... Nh8 $17 24. Kh1 Qc8) 24. Bc2 $1 {[%emt 0:00:25]} c5 {[%emt 0:02:45]} 25. g4 {[%emt 0:03:05]} (25. d4 $11 fxg3 26. hxg3 exd4 27. cxd4) 25... Kg8 {[%emt 0:05:53]} (25... Re6 $1 $15) 26. Qh5 {[%emt 0:03:46]} f3 {[%emt 0:07:29]} 27. d4 {[%emt 0:03:47]} Nf4 $19 {[%emt 0:00:45]} 28. Qxe5 {[%emt 0:07:43]} Nc4 {[%emt 0:01:22]} 29. Bb3 {[%emt 0:00:26]} Re6 {[%emt 0:01:18]} 30. Bxc4 {[%emt 0:00:32]} Qd7 {[%emt 0:00:50]} 31. dxc5 {[%emt 0:01:34]} Qe7 {[%emt 0:00:22]} 32. Bxe6+ {[%emt 0:00:14]} Qxe6 {[%emt 0:00:34]} 33. Qxe6+ {[%emt 0:00:25]} Nxe6 {[%emt 0:00:06]} 34. Rxe6 {[%emt 0:00:04]} 1-0

[Event "GER-chT States Women 2022"]
[Site "Braunfels"]
[Date "2022.06.18"]
[Round "4.32"]
[White "Alferova, Emily"]
[Black "Freter, Anke"]
[Result "1-0"]
[ECO "A48"]
[WhiteElo "1536"]
[BlackElo "1856"]
[Annotator "NA RC"]
[PlyCount "78"]
[EventDate "2022.06.15"]
[EventType "swiss"]
[EventCountry "GER"]
[SourceTitle "playchess.com"]
[Source "ChessBase"]
[SourceQuality "1"]
[TimeControl "40/5400+30:1800+30"]

1. d4 {[%emt 0:00:02]} Nf6 {[%emt 0:00:02]} 2. Nf3 {[%emt 0:00:06]} g6 {[%emt 0:00:05]} 3. Nbd2 {[%emt 0:00:04]} Bg7 {[%emt 0:00:42]} 4. e4 {[%emt 0:00:05]} d6 {[%emt 0:00:33]} 5. Bd3 {[%emt 0:01:48]} Nbd7 {[%emt 0:01:04]} 6. O-O {[%emt 0:01:50]} O-O {[%emt 0:01:16]} 7. h3 {[%emt 0:03:54]} e5 {[%emt 0:01:30]} 8. dxe5 {[%emt 0:03:15]} Nxe5 {[%emt 0:02:52]} 9. Nxe5 {[%emt 0:00:44]} dxe5 {[%emt 0:00:02]} 10. Nf3 {[%emt 0:01:38]} Re8 {[%emt 0:02:55]} 11. Qe2 {[%emt 0:04:51]} c6 {[%emt 0:05:59]} 12. Rd1 {[%emt 0:06:34]} Qc7 {[%emt 0:00:31]} 13. Bc4 {[%emt 0:05:41]} Be6 {[%emt 0:02:13]} 14. Bxe6 {[%emt 0:01:56]} Rxe6 {[%emt 0:00:02]} 15. Bg5 {[%emt 0:02:40]} h6 {[%emt 0:01:33]} 16. Bxf6 {[%emt 0:00:11]} Bxf6 {[%emt 0:01:51]} 17. Rd3 {[%emt 0:01:59]} Rd6 {[%emt 0:10:45]} 18. Rad1 {[%emt 0:03:43]} Rad8 {[%emt 0:01:40]} 19. Rxd6 {[%emt 0:05:24]} Rxd6 {[%emt 0:00:17]} 20. Rd3 {[%emt 0:04:15]} Rxd3 {[%emt 0:04:47]} 21. Qxd3 {[%emt 0:00:27]} Kg7 {[%emt 0:01:23]} 22. b3 {[%emt 0:07:53]} Be7 {[%emt 0:04:16]} 23. a4 {[%emt 0:02:04]} Qd6 {[%emt 0:06:51]} 24. Qxd6 {[%emt 0:01:17]} Bxd6 {[%emt 0:00:01]} 25. Kf1 {[%emt 0:00:37]} f5 {[%emt 0:00:59]} 26. exf5 {[%emt 0:07:33]} Kf6 {[%emt 0:00:03]} 27. fxg6 {[%emt 0:00:30]} Kxg6 {[%emt 0:00:30]} 28. Ke2 {[%emt 0:01:13]} h5 {[%emt 0:01:03]} 29. Nd2 {[%emt 0:09:49]} e4 {[%emt 0:07:22]} 30. Nf1 {[%emt 0:08:47]} Bc5 {[%emt 0:04:55]} 31. Ne3 {[%emt 0:07:47]} Bxe3 {[%emt 0:06:35]} 32. g3 {[%emt 0:00:38]} Kf5 {[%emt 0:00:30]} 33. Kxe3 {[%emt 0:00:30]} Ke5 {[%emt 0:01:22]} 34. f3 {[%emt 0:00:44]} h4 {[%emt 0:07:21]} 35. fxe4 {[%emt 0:03:27]} hxg3 {[%emt 0:04:59]} 36. Kf3 {[%emt 0:00:00]} c5 {[%emt 0:03:51]} 37. a5 {[%emt 0:00:16]} b6 {[%emt 0:00:45]} 38. c4 b5 {[%emt 0:00:01]} 39. h4 {[%emt 0:00:00]} Kf6 {[%emt 0:12:26]} 1-0

[Event "GER-chT States Women 2022"]
[Site "Braunfels"]
[Date "2022.06.18"]
[Round "4.33"]
[White "Krasnopeyeva, Julia"]
[Black "Hund, Sarah"]
[Result "0-1"]
[ECO "C77"]
[WhiteElo "1939"]
[BlackElo "2086"]
[Annotator "TA"]
[PlyCount "96"]
[EventDate "2022.06.15"]
[EventType "swiss"]
[EventCountry "GER"]
[SourceTitle "playchess.com"]
[Source "ChessBase"]
[SourceQuality "1"]
[TimeControl "40/5400+30:1800+30"]

{[%evp 16,96,28,19,21,8,10,8,21,0,0,0,0,0,0,8,40,-10,28,0,56,6,62,62,62,59,62,57,54,42,51,51,59,48,57,54,42,40,84,33,35,-14,4,10,8,14,84,77,115,115,76,48,60,78,60,0,0,-49,-42,-45,14,-211,-208,-233,-231,-313,-247,-531,-527,-1012,-677,-664,-693,-675,-662,-1570,-1560,-29978,-29979,-29979,-29980,-29996,-29997]} 1. e4 {[%emt 0:00:02]} e5 {[%emt 0:00:07]} 2. Nf3 {[%emt 0:00:07]} Nc6 {[%emt 0:00:05]} 3. Bb5 {[%emt 0:00:09]} a6 {[%emt 0:00:11]} 4. Ba4 {[%emt 0:00:12]} Nf6 {[%emt 0:00:10]} 5. d3 {[%emt 0:00:14]} d6 {[%emt 0:00:44]} 6. c3 {[%emt 0:00:14]} g6 {[%emt 0:00:40]} 7. O-O {[%emt 0:02:39]} Bg7 {[%emt 0:00:32]} 8. Re1 {[%emt 0:04:10]} O-O {[%emt 0:02:35]} 9. Nbd2 {[%emt 0:01:16]} Re8 {[%emt 0:01:06] C77: Ruy Lopez: 3...a6 4 Ba4 Nf6, unusual lines.} 10. Nf1 {[%emt 0:02:28]} h6 {[%emt 0:01:11]} 11. Ng3 $1 {[%emt 0:04:08]} b5 {[%emt 0:02:07] The position is equal.} 12. Bb3 {[%emt 0:01:53]} Na5 {[%emt 0:02:33]} 13. Bc2 {[%emt 0:00:17]} c5 {[%emt 0:01:31]} 14. h3 {[%emt 0:05:24]} Bb7 {[%emt 0:05:21]} 15. Be3 {[%emt 0:02:09] [#]} Qc7 $146 {[%emt 0:06:13]} ({Predecessor:} 15... Qe7 16. Qd2 Qf8 17. b4 Nc6 18. a3 a5 19. Bb3 Kh7 20. Rab1 axb4 21. axb4 Rad8 {½-½ (47) Ostrovskiy,A (2424)-Colpe,M (2374) Germany 2018}) 16. Rc1 {[%emt 0:06:53]} (16. Qd2 $14) 16... Nc6 {[%emt 0:05:16]} 17. d4 {[%emt 0:12:13]} Na5 {[%emt 0:05:14]} (17... exd4 $11 18. cxd4 d5) 18. Nd2 {[%emt 0:09:01]} (18. b3 $1 $14) 18... Nd7 {[%emt 0:07:07]} (18... cxd4 $11 19. cxd4 exd4 20. Bxd4 Rac8) 19. d5 $14 {[%emt 0:01:23]} Nb6 {[%emt 0:01:44]} 20. b3 {[%emt 0:01:57] Against Nac4} Bc8 {[%emt 0:02:47]} 21. Bb1 {[%emt 0:05:05]} c4 {[%emt 0:05:45]} 22. f4 {[%emt 0:03:19]} exf4 {[%emt 0:06:54]} 23. Bxf4 {[%emt 0:00:29]} Nb7 {[%emt 0:00:31]} 24. Qf3 {[%emt 0:01:45]} Nc5 {[%emt 0:03:03]} 25. Rf1 {[%emt 0:03:20][%cal Og3h5] Strongly threatening Nh5!} Rf8 {[%emt 0:05:12]} 26. Ne2 {[%emt 0:03:48]} Nbd7 {[%emt 0:04:15]} 27. Qg3 {[%emt 0:02:12]} (27. Qe3 $16) 27... Ne5 {[%emt 0:01:16]} 28. Rcd1 {[%emt 0:02:10]} (28. Nd4 $14) 28... cxb3 {[%emt 0:01:52]} (28... Ncd3 {looks sharper.} 29. Be3 Nb2 30. Rc1 a5) 29. axb3 {[%emt 0:00:25]} a5 {[%emt 0:00:39][%cal Ba6a5,Ba5a4,Ba4a3,Ba3a2][%mdl 32]} 30. Nd4 {[%emt 0:02:23]} Qb6 {[%emt 0:07:43]} (30... Ba6 $11) 31. Kh1 $16 {[%emt 0:01:57][%cal Od4f5]} Kh7 {[%emt 0:01:47]} 32. N2f3 {[%emt 0:02:54][%cal Rf3e5]} Ncd7 {[%emt 0:01:27]} 33. Be3 {[%emt 0:04:24] Hoping for Nxe5.} (33. Nc6 $5) 33... Qb7 {[%emt 0:02:08]} 34. Qh4 {[%emt 0:00:53]} a4 {[%emt 0:01:50]} 35. Qe7 {[%emt 0:01:34]} (35. b4 $14) 35... a3 {[%emt 0:02:37]} 36. Qxd6 {[%emt 0:01:21]} (36. Nxe5 $11 dxe5 37. Nc6 (37. Rxf7 $2 Rxf7 38. Qxf7 exd4 $19)) 36... a2 $1 $15 {[%emt 0:00:54]} 37. Bc2 {[%emt 0:00:08]} Nxf3 {[%emt 0:00:36]} (37... Re8 $15 38. Nxe5 Nxe5) 38. gxf3 $2 {[%emt 0:01:20] [#] Loses the game.} (38. Nxf3 $11 b4 39. Bd4) 38... Ne5 $1 $19 {[%emt 0:01:47]} 39. Ra1 {[%emt 0:00:39]} Bxh3 {[%emt 0:00:33]} ({And not} 39... Ra6 40. Qb4 $17) 40. Rg1 {[%emt 0:01:14]} Rfc8 {[%emt 0:01:55] Chess con chili.} 41. Bd2 {[%emt 0:33:28]} ({Don't blunder} 41. Bf4 $2 Ra6 42. Qb4 {[#]} Nxf3 $1 $19 {[%mdl 512]}) (41. Bxh6 Kxh6 42. Rg3) 41... b4 {[%emt 0:32:45]} 42. f4 {[%emt 0:02:22]} Ra6 {[%emt 0:01:51]} 43. Qxb4 {[%emt 0:03:29]} Qxb4 {[%emt 0:00:24]} 44. cxb4 {[%emt 0:00:10] [#]} Nf3 {[%emt 0:00:41][%mdl 576] Pin, Double Attack} 45. Bd3 {[%emt 0:01:40] [#]} (45. e5 Nxd4) 45... Bxd4 {[%emt 0:02:28]} 46. Bxa6 {[%emt 0:00:13]} (46. Be3 Bxe3) 46... Rc2 {[%emt 0:00:18] Black mates.} 47. Rxa2 {[%emt 0:00:00]} Rxa2 {[%emt 0:00:00]} 48. Rg3 {[%emt 0:00:00]} Ra1+ {[%emt 0:00:00] Weighted Error Value: White=0.69/Black=0.20 (precise)} 0-1

[Event "GER-chT States Women 2022"]
[Site "Braunfels"]
[Date "2022.06.18"]
[Round "4.34"]
[White "Frey, Alisa"]
[Black "Mader, Lena"]
[Result "1-0"]
[ECO "B07"]
[WhiteElo "1998"]
[BlackElo "1789"]
[Annotator "NA RC"]
[PlyCount "203"]
[EventDate "2022.06.15"]
[EventType "swiss"]
[EventCountry "GER"]
[SourceTitle "playchess.com"]
[Source "ChessBase"]
[SourceQuality "1"]
[TimeControl "40/5400+30:1800+30"]

1. d4 {[%emt 0:00:03]} Nf6 {[%emt 0:00:04]} 2. Nc3 {[%emt 0:00:06]} g6 {[%emt 0:00:28]} 3. e4 {[%emt 0:00:09]} d6 {[%emt 0:00:22]} 4. Be3 {[%emt 0:00:25]} Bg7 {[%emt 0:01:23]} 5. f3 {[%emt 0:01:11]} O-O {[%emt 0:03:10]} 6. Qd2 {[%emt 0:01:33]} e5 {[%emt 0:03:52] The main line 6...e5 scores better than 6...c6.} 7. d5 {[%emt 0:03:41]} a5 {[%emt 0:02:45] [#]} 8. h4 $146 {[%emt 0:01:58]} ({Predecessor:} 8. O-O-O Na6 9. Bh6 Nc5 10. g4 Nfd7 11. h4 Bxh6 12. Qxh6 Qf6 13. Nb5 Na6 14. Kb1 {1-0 (43) Deus Filho,J (1974)-Jenidarchiche,D (1845) Hebraica 2018}) 8... h5 {[%emt 0:00:12]} 9. Be2 {[%emt 0:02:09]} Na6 {[%emt 0:02:03]} 10. O-O-O {[%emt 0:03:17]} Nc5 {[%emt 0:05:41]} 11. Nh3 {[%emt 0:05:11]} Bd7 {[%emt 0:07:05]} 12. Nf2 {[%emt 0:02:19]} Rb8 {[%emt 0:01:33]} 13. g4 {[%emt 0:06:16]} b5 {[%emt 0:02:51]} 14. Bg5 {[%emt 0:03:19]} b4 {[%emt 0:03:52]} 15. Nb1 {[%emt 0:00:05]} hxg4 {[%emt 0:10:41]} 16. h5 {[%emt 0:03:00]} Qc8 {[%emt 0:04:19]} 17. h6 {[%emt 0:16:34]} Bh8 {[%emt 0:03:13]} 18. h7+ {[%emt 0:01:14]} Nxh7 {[%emt 0:00:06]} 19. Rxh7 {[%emt 0:10:23]} Kxh7 {[%emt 0:00:02]} 20. Rh1+ {[%emt 0:00:06]} Kg7 {[%emt 0:00:06]} 21. fxg4 {[%emt 0:12:21] [#]} b3 {[%emt 0:00:48]} (21... f6 $1 $17 {[%cal Rf6g5]} 22. Bh6+ Kf7 23. Bxf8 Qxf8) 22. axb3 {[%emt 0:01:25]} Rxb3 {[%emt 0:00:31]} 23. Be7 {[%emt 0:00:35]} ({Not} 23. Be3 {[#]} Rxe3 $1 24. Qxe3 Rg8 $11) 23... f6 {[%emt 0:02:07]} 24. Qh6+ {[%emt 0:00:14]} Kf7 {[%emt 0:00:01]} 25. Bxf8 {[%emt 0:01:07]} Qxf8 {[%emt 0:11:26]} 26. Qxf8+ {[%emt 0:00:08]} ({Not} 26. Qxh8 Qxh8 27. Rxh8 Rg3 $18) ({Don't take} 26. cxb3 Qxh6+ 27. Rxh6 Nxb3+ 28. Kd1 Bg7 $18) 26... Kxf8 {[%emt 0:00:01]} 27. cxb3 {[%emt 0:00:12]} ({Don't do} 27. Rxh8+ Kg7 $18) 27... Nxb3+ {[%emt 0:00:42]} 28. Kd1 {[%emt 0:02:11]} Bg7 {[%emt 0:00:12]} 29. Nd2 {[%emt 0:03:20]} Nd4 {[%emt 0:00:17]} 30. Nf3 {[%emt 0:01:58]} Ba4+ {[%emt 0:01:06]} 31. Kd2 {[%emt 0:01:08]} Nb3+ {[%emt 0:00:20]} 32. Kc3 {[%emt 0:00:16]} Nc5 {[%emt 0:00:55]} 33. Ra1 {[%emt 0:01:35]} f5 {[%emt 0:00:17]} 34. Ng5 {[%emt 0:00:54]} Bd7 {[%emt 0:00:57]} 35. Rxa5 {[%emt 0:00:38]} Bh6 {[%emt 0:01:00]} 36. Ne6+ {[%emt 0:01:04]} Bxe6 {[%emt 0:00:18]} 37. dxe6 {[%emt 0:00:08]} Nxe6 {[%emt 0:00:20]} 38. Bc4 {[%emt 0:01:53]} Nd4 {[%emt 0:01:31]} 39. Ra7 {[%emt 0:00:55]} Be3 {[%emt 0:00:56]} 40. Nd1 {[%emt 0:01:09]} Ne2+ {[%emt 0:02:35]} 41. Bxe2 {[%emt 0:30:24]} Bxa7 {[%emt 0:30:04]} 42. exf5 {[%emt 0:00:32]} gxf5 {[%emt 0:00:11]} 43. gxf5 {[%emt 0:00:08]} Kg7 {[%emt 0:00:41]} 44. Bf3 {[%emt 0:01:09]} Kf6 {[%emt 0:00:18]} 45. Be4 {[%emt 0:00:59]} d5 {[%emt 0:00:45]} 46. Bxd5 {[%emt 0:00:18]} Kxf5 {[%emt 0:00:04]} 47. Kd3 {[%emt 0:00:18]} Kf4 {[%emt 0:02:15]} (47... Bd4 $142 48. Nc3 Kf6) 48. b3 {[%emt 0:01:37]} Kf5 {[%emt 0:00:30]} 49. Nc3 {[%emt 0:01:00]} Kf4 {[%emt 0:04:00]} 50. Bc6 {[%emt 0:01:47]} Bc5 {[%emt 0:11:39]} 51. Nd5+ {[%emt 0:00:44]} Kf5 {[%emt 0:00:25]} 52. Bd7+ {[%emt 0:00:39]} Kg6 {[%emt 0:00:48]} 53. Nxc7 {[%emt 0:00:21]} Kf7 {[%emt 0:00:26]} 54. Nd5 {[%emt 0:00:18]} Kg6 {[%emt 0:04:42]} 55. Ke4 {[%emt 0:00:18]} Bd4 {[%emt 0:01:10]} 56. Be8+ {[%emt 0:01:17]} Kg5 {[%emt 0:01:39]} 57. b4 {[%emt 0:00:31]} Kh4 {[%emt 0:01:17]} 58. b5 {[%emt 0:00:18]} Kg3 {[%emt 0:00:30]} 59. Ne7 {[%emt 0:01:14]} Kg2 {[%emt 0:01:31]} 60. Nc6 {[%emt 0:00:18]} Bg1 {[%emt 0:00:40]} 61. Kxe5 {[%emt 0:01:35]} Bb6 {[%emt 0:00:42]} 62. Kd6 {[%emt 0:00:50]} Kg3 {[%emt 0:00:36]} 63. Nb4 {[%emt 0:01:14]} Bg1 {[%emt 0:00:59]} 64. Nd3 {[%emt 0:02:24]} Bb6 {[%emt 0:01:03]} 65. Bh5 {[%emt 0:00:25]} Kh4 {[%emt 0:00:51]} 66. Bf3 {[%emt 0:00:22]} Kg5 {[%emt 0:00:57]} 67. Be4 {[%emt 0:00:23]} Kg4 {[%emt 0:02:11]} 68. Nb4 {[%emt 0:01:18]} Bg1 {[%emt 0:02:10]} 69. Nd5 {[%emt 0:01:05]} Kg5 {[%emt 0:00:00]} 70. Ke5 {[%emt 0:00:00]} Bh2+ {[%emt 0:00:00]} 71. Ke6 {[%emt 0:00:00]} Bg1 {[%emt 0:00:00]} 72. Bh7 {[%emt 0:00:00]} Ba7 {[%emt 0:00:00]} 73. b6 {[%emt 0:00:00]} Bxb6 {[%emt 0:00:00]} 74. Nxb6 {[%emt 0:00:00]} Kf4 {[%emt 0:00:00]} 75. Nd5+ {[%emt 0:00:00]} Kf3 {[%emt 0:00:00]} 76. Ke5 {[%emt 0:00:00]} Ke2 {[%emt 0:00:00]} 77. Ke4 {[%emt 0:00:00]} Kd2 {[%emt 0:00:00]} 78. Kd4 {[%emt 0:00:00]} Ke2 {[%emt 0:00:00]} 79. Be4 {[%emt 0:00:00]} Kd2 {[%emt 0:00:00]} 80. Bd3 {[%emt 0:00:00]} Kc1 {[%emt 0:00:00]} 81. Ne3 {[%emt 0:00:00]} Kb2 {[%emt 0:00:00]} 82. Bc4 {[%emt 0:00:00]} Ka3 {[%emt 0:00:00]} 83. Nc2+ {[%emt 0:00:00]} Kb2 {[%emt 0:00:00]} 84. Kd3 {[%emt 0:00:00]} Kc1 {[%emt 0:00:00]} 85. Kc3 {[%emt 0:00:00]} Kb1 {[%emt 0:00:00]} 86. Bb3 {[%emt 0:00:00]} Kc1 {[%emt 0:00:00]} 87. Ba2 {[%emt 0:00:00]} Kd1 {[%emt 0:00:00]} 88. Nd4 {[%emt 0:00:00]} Kc1 {[%emt 0:00:00]} 89. Ne2+ {[%emt 0:00:00]} Kd1 {[%emt 0:00:00]} 90. Kd3 {[%emt 0:00:00]} Ke1 {[%emt 0:00:00]} 91. Ke3 {[%emt 0:00:00]} Kd1 {[%emt 0:00:00]} 92. Bb3+ {[%emt 0:00:00]} Ke1 {[%emt 0:00:00]} 93. Bc2 {[%emt 0:00:00]} Kf1 {[%emt 0:00:00]} 94. Nf4 {[%emt 0:00:00]} Ke1 {[%emt 0:00:00]} 95. Ng2+ {[%emt 0:00:00]} Kf1 {[%emt 0:00:00]} 96. Kf3 {[%emt 0:00:00]} Kg1 {[%emt 0:00:00]} 97. Kg3 {[%emt 0:00:14]} Kf1 {[%emt 0:00:00]} 98. Bd3+ {[%emt 0:00:04]} Kg1 {[%emt 0:00:00]} 99. Nf4 {[%emt 0:00:14]} Kh1 {[%emt 0:00:00]} 100. Be2 {[%emt 0:00:15]} Kg1 {[%emt 0:00:00]} 101. Nh3+ {[%emt 0:00:07]} Kh1 {[%emt 0:00:00]} 102. Bf3# {[%emt 0:00:03]} 1-0

[Event "GER-chT States Women 2022"]
[Site "Braunfels"]
[Date "2022.06.18"]
[Round "4.35"]
[White "Bazzazi, Elnaz"]
[Black "Kohm, Vanessa"]
[Result "1-0"]
[ECO "B35"]
[WhiteElo "1749"]
[BlackElo "1772"]
[Annotator "NA RC"]
[PlyCount "81"]
[EventDate "2022.06.15"]
[EventType "swiss"]
[EventCountry "GER"]
[SourceTitle "playchess.com"]
[Source "ChessBase"]
[SourceQuality "1"]
[TimeControl "40/5400+30:1800+30"]

1. e4 {[%emt 0:00:03]} c5 {[%emt 0:00:05]} 2. Nf3 {[%emt 0:00:08]} Nc6 {[%emt 0:00:13]} 3. d4 {[%emt 0:00:14]} cxd4 {[%emt 0:00:08]} 4. Nxd4 {[%emt 0:00:05]} g6 {[%emt 0:00:15]} 5. Nc3 {[%emt 0:03:01]} Bg7 {[%emt 0:00:27]} 6. Be3 {[%emt 0:00:32]} Nf6 {[%emt 0:01:06]} 7. Bc4 {[%emt 0:00:32]} O-O {[%emt 0:02:11]} 8. Qd2 {[%emt 0:12:00]} Ng4 {[%emt 0:03:53]} 9. Nxc6 {[%emt 0:00:39]} bxc6 {[%emt 0:01:57]} 10. Bd4 {[%emt 0:00:32]} Nf6 {[%emt 0:03:52]} 11. O-O {[%emt 0:06:44]} d6 {[%emt 0:03:35]} 12. h3 {[%emt 0:02:29]} Bb7 {[%emt 0:02:11]} 13. Be3 {[%emt 0:04:06]} d5 {[%emt 0:02:49]} 14. exd5 {[%emt 0:00:56]} cxd5 {[%emt 0:00:08]} 15. Bb3 {[%emt 0:00:20]} e6 {[%emt 0:04:19]} 16. Bc5 {[%emt 0:07:16]} Re8 {[%emt 0:06:15]} 17. Ba4 {[%emt 0:01:25]} Nd7 {[%emt 0:03:47]} 18. Ba3 {[%emt 0:02:21]} a6 {[%emt 0:06:56]} 19. Ne2 {[%emt 0:01:36]} Qc7 {[%emt 0:09:18]} 20. c4 {[%emt 0:04:15]} Rec8 {[%emt 0:09:10]} 21. Rac1 {[%emt 0:05:18]} Nb6 {[%emt 0:11:30]} 22. cxd5 {[%emt 0:02:17]} Qd8 {[%emt 0:01:03]} 23. Bb3 {[%emt 0:02:09]} Nxd5 {[%emt 0:02:03]} 24. Rfd1 {[%emt 0:03:18]} Qh4 {[%emt 0:07:56]} 25. Rxc8+ {[%emt 0:07:58]} Rxc8 {[%emt 0:00:38]} 26. Rc1 {[%emt 0:03:55]} Rd8 {[%emt 0:03:36]} 27. Qa5 {[%emt 0:12:06]} Bf6 {[%emt 0:05:47]} 28. Rc4 {[%emt 0:04:57]} Qh5 {[%emt 0:04:24]} 29. Ng3 {[%emt 0:01:17]} Qe5 {[%emt 0:01:17]} 30. Ne4 {[%emt 0:01:16]} Bh4 {[%emt 0:00:54]} 31. Nd6 {[%emt 0:02:10]} Qf6 {[%emt 0:02:21]} 32. Rxh4 {[%emt 0:01:33]} Qxh4 {[%emt 0:00:28]} 33. Nxb7 {[%emt 0:00:14]} Rc8 {[%emt 0:00:23]} 34. Qd2 {[%emt 0:03:28]} Qe4 {[%emt 0:01:04]} 35. Bxd5 {[%emt 0:00:59]} exd5 {[%emt 0:00:05]} 36. Nd6 {[%emt 0:00:57]} Qb1+ {[%emt 0:00:16]} 37. Kh2 {[%emt 0:00:17]} Rc7 {[%emt 0:01:22]} 38. Qxd5 {[%emt 0:00:49]} Qc1 {[%emt 0:00:20]} 39. Qa8+ {[%emt 0:00:47]} Kg7 {[%emt 0:00:09]} 40. Ne8+ {[%emt 0:00:06]} Kh6 {[%emt 0:00:14]} 41. Bf8+ {[%emt 0:30:21]} 1-0

[Event "GER-chT States Women 2022"]
[Site "Braunfels"]
[Date "2022.06.18"]
[Round "4.36"]
[White "Grining, Maria"]
[Black "Marx, Christina"]
[Result "1-0"]
[ECO "A46"]
[WhiteElo "1759"]
[BlackElo "1587"]
[Annotator "NA RC"]
[PlyCount "105"]
[EventDate "2022.06.15"]
[EventType "swiss"]
[EventCountry "GER"]
[SourceTitle "playchess.com"]
[Source "ChessBase"]
[SourceQuality "1"]
[TimeControl "40/5400+30:1800+30"]

1. d4 {[%emt 0:00:02]} Nf6 {[%emt 0:00:06]} 2. Nf3 {[%emt 0:00:05]} e6 {[%emt 0:00:06]} 3. e3 {[%emt 0:00:06]} b6 {[%emt 0:01:28]} 4. Bd3 {[%emt 0:00:28]} Bb7 {[%emt 0:00:17]} 5. Nbd2 {[%emt 0:00:12]} c5 {[%emt 0:01:51]} 6. b3 {[%emt 0:01:09]} cxd4 {[%emt 0:01:18]} 7. exd4 {[%emt 0:00:17]} Nc6 {[%emt 0:00:42]} 8. Bb2 {[%emt 0:00:51]} Be7 {[%emt 0:00:23]} 9. O-O {[%emt 0:00:35]} O-O {[%emt 0:00:07]} 10. c4 {[%emt 0:04:14]} d5 {[%emt 0:11:43]} 11. Ne5 {[%emt 0:08:49]} Rc8 {[%emt 0:06:29]} 12. Nxc6 {[%emt 0:13:27]} Bxc6 {[%emt 0:00:17]} 13. Qe2 {[%emt 0:01:39]} Kh8 {[%emt 0:07:08]} 14. f4 {[%emt 0:06:51]} g6 {[%emt 0:09:43]} 15. Rae1 {[%emt 0:09:43]} Bd6 {[%emt 0:03:35]} 16. Kh1 {[%emt 0:03:58]} Nh5 {[%emt 0:00:36]} 17. c5 {[%emt 0:11:30]} Qh4 {[%emt 0:18:32]} 18. Qf2 {[%emt 0:06:37]} Qxf4 {[%emt 0:00:40]} 19. cxd6 {[%emt 0:00:40]} Qxd6 {[%emt 0:05:03]} 20. Qe3 {[%emt 0:03:17]} Qe7 {[%emt 0:08:56]} 21. Nf3 {[%emt 0:03:19]} Bd7 {[%emt 0:06:28]} 22. Ne5 {[%emt 0:05:15]} Be8 {[%emt 0:04:36]} 23. Rc1 {[%emt 0:06:01]} Rxc1 {[%emt 0:02:24]} 24. Bxc1 {[%emt 0:00:11]} f6 {[%emt 0:03:03]} 25. Qh6 {[%emt 0:05:23]} Kg8 {[%emt 0:00:18]} 26. Ng4 {[%emt 0:01:25]} a5 {[%emt 0:03:26]} 27. Qe3 {[%emt 0:02:22]} Bd7 {[%emt 0:01:31]} 28. Qe2 {[%emt 0:01:39]} Kh8 {[%emt 0:01:48]} 29. Bh6 {[%emt 0:00:36]} Rf7 {[%emt 0:00:14]} 30. Bd2 {[%emt 0:00:56]} Rf8 {[%emt 0:00:04]} 31. Qf3 {[%emt 0:01:22]} f5 {[%emt 0:00:22]} 32. Ne5 {[%emt 0:00:16]} Be8 {[%emt 0:00:37]} 33. Bh6 {[%emt 0:00:25]} Rg8 {[%emt 0:00:08]} 34. Bc1 {[%emt 0:01:29]} Rf8 {[%emt 0:00:10]} 35. g4 {[%emt 0:00:21]} Ng7 {[%emt 0:01:06]} 36. Bh6 {[%emt 0:00:18]} Kg8 {[%emt 0:01:05]} 37. gxf5 {[%emt 0:00:12]} exf5 {[%emt 0:00:36]} 38. Qxd5+ {[%emt 0:00:25]} Kh8 {[%emt 0:00:13]} 39. Bc4 {[%emt 0:01:41]} Qh4 {[%emt 0:01:01]} 40. Bxg7+ {[%emt 0:01:03]} Kxg7 {[%emt 0:00:24]} 41. Nf3 {[%emt 0:05:10]} Qe4 {[%emt 0:05:53]} 42. Qxe4 {[%emt 0:04:25]} fxe4 {[%emt 0:00:03]} 43. Ng5 {[%emt 0:02:44]} Rxf1+ {[%emt 0:01:08]} 44. Bxf1 {[%emt 0:00:07]} Bc6 {[%emt 0:01:12]} 45. Bg2 {[%emt 0:00:34]} h6 {[%emt 0:03:24]} 46. Nxe4 {[%emt 0:00:44]} g5 {[%emt 0:00:36]} 47. Kg1 {[%emt 0:01:22]} b5 {[%emt 0:01:41]} 48. Kf2 {[%emt 0:01:33]} b4 {[%emt 0:00:26]} 49. Nc5 {[%emt 0:01:17]} Bb5 {[%emt 0:01:02]} 50. Ke3 {[%emt 0:01:00]} Kf6 {[%emt 0:00:38]} 51. Bh3 {[%emt 0:00:47]} h5 {[%emt 0:01:53]} 52. Bd7 {[%emt 0:01:18]} Bf1 {[%emt 0:05:12]} 53. Nb7 {[%emt 0:00:54]} 1-0